fUSD/lending_fUSD_20251129
["ID","MTS","AMOUNT","RATE_DAILY","PERIOD"]
[395075524,1764402835697,-500.0,0.00052054,120]
[395075525,1764402835752,-500.0,0.00052054,120]
[395075526,1764402835805,-500.0,0.00052054,120]
[395075527,1764402835857,-500.0,0.00052054,120]
[395075528,1764402835910,-500.0,0.00052054,120]
[395075529,1764402835963,-320.586988,0.00052054,120]
[395075530,1764402836014,-151.91866068,0.00052054,120]
[395075531,1764402836066,-500.0,0.00052054,120]
[395075532,1764402836119,-500.0,0.00052054,120]
[395075533,1764402836171,-500.0,0.00052054,120]
[395075534,1764402836223,-500.0,0.00052054,120]
[395075535,1764402836277,-500.0,0.00052054,120]
[395075536,1764402836333,-500.0,0.00052054,120]
[395075537,1764402836385,-500.0,0.00052054,120]
[395075538,1764402836437,-500.0,0.00052054,120]
[395075539,1764402836785,-500.0,0.00052054,120]
[395075540,1764402836840,-578.69983249,0.00052054,120]
[395075541,1764402836895,-155.29376756,0.00052054,120]
[395075542,1764402836949,-150.0,0.00052054,120]
[395075543,1764402837000,-153.62836239,0.00052054,120]
[395075544,1764402837054,-150.0,0.00052054,120]
[395075545,1764402837109,-155.0383737,0.00052054,120]
[395075546,1764402837164,-200.13285561,0.00052054,120]
[395075547,1764402837221,-152.79299703,0.00052054,120]
[395075548,1764402837276,-150.0,0.00052054,120]
[395075549,1764402837332,-150.0,0.00052054,120]
[395075550,1764402837386,-150.0,0.00052054,120]
[395075551,1764402837441,-150.0,0.00052054,120]
[395075552,1764402837493,-150.0,0.00052054,120]
[395075553,1764402837547,-249.0,0.00052054,120]
[395075554,1764402837600,-10496.28,0.00052093,60]
[395075555,1764402837652,-152.0,0.000521,120]
[395075556,1764402837711,-1400.0,0.00052128,60]
[395075557,1764402837764,-266.52970499,0.000523,120]
[395075558,1764402837819,-2500.0,0.000524,120]
[395075559,1764402837873,-176.0,0.000524,120]
[395075560,1764402837925,-131871.46695199,0.000524,75]
[395075561,1764402837976,-200.0,0.00052598,120]
[395075562,1764402838029,-218.07688869,0.00052598,120]
[395075563,1764402838082,-700.0,0.00052676,60]
[395075564,1764402838135,-2000.0,0.0005268,68]
[395075565,1764402838189,-152.0,0.000527,120]
[395075566,1764402838244,-681.38,0.00052876,120]
[395075567,1764402838298,-176.0,0.000529,120]
[395075568,1764402838353,-2565.56414285,0.00052913,120]
[395075569,1764402838409,-1000.0,0.00052999,120]
[395075570,1764402838462,-1000.0,0.00052999,30]
[395075571,1764402838514,-2300.0,0.00052999,30]
[395075572,1764402838570,-589.19931725,0.00053,120]
[395075573,1764402838624,-150.0,0.00053,120]
[395075574,1764402838678,-582.73076431,0.00053,120]
[395075575,1764402838732,-4155.0,0.00053,30]
[395075576,1764402838788,-516.01193401,0.00053,120]
[395075577,1764402838843,-1619.0,0.00053,120]
[395075578,1764402838897,-1779.0,0.00053,120]
[395075579,1764402838951,-1696.0,0.00053,120]
[395075580,1764402839004,-1648.0,0.00053,120]
[395075581,1764402839057,-1648.0,0.00053,120]
[395075582,1764402839111,-152.0,0.000532,120]
[395075583,1764402839165,-1400.0,0.00053224,60]
[395075584,1764402839219,-176.0,0.000534,120]
[395075585,1764402839273,-526.27809336,0.000534,120]
[395075586,1764402839327,-358.7485897,0.000535,120]
[395075587,1764402839381,-2000.0,0.0005369,71]
[395075588,1764402839435,-152.0,0.000537,120]
[395075589,1764402839489,-358.22293424,0.00053772,60]
[395075590,1764402839543,-1478.57153423,0.00053789,86]
[395075591,1764402839598,-1000.0,0.000538,120]
[395075592,1764402839652,-43355.02002958,0.000538,120]
[395075593,1764402839712,-681.38,0.00053835,120]
[395075594,1764402839767,-176.0,0.000539,120]
[395075595,1764402839821,-2245.66021766,0.000539,120]
[395075596,1764402839876,-130186.60974032,0.0005392,120]
[395075597,1764402839931,-942.60113496,0.00053949,120]
[395075598,1764402839982,-2986.2669053,0.00053949,120]
[395075599,1764402840037,-604.26677397,0.00053949,120]
[395075600,1764402840091,-224.82766513,0.00053949,120]
[395075601,1764402840147,-443.3184848,0.0005395,120]
[395075602,1764402840202,-3777.69607491,0.00053951,120]
[395075603,1764402840262,-69233.13499442,0.00053952,120]
[395075604,1764402840317,-886.63696961,0.00053953,120]
[395075605,1764402840373,-34616.56749721,0.00053953,120]
[395075606,1764402840436,-11660.19650566,0.00053953,120]
[395075607,1764402840490,-61311.47158449,0.00053956,120]
[395075608,1764402840544,-1888.84803746,0.0005396,120]
[395075609,1764402840595,-1885.20226992,0.00053961,120]
[395075610,1764402840645,-403.69850673,0.00053961,120]
[395075611,1764402840698,-5587.61962049,0.00053961,120]
[395075612,1764402840749,-471.30056748,0.00053962,120]
[395075613,1764402840802,-17308.28374861,0.00053967,120]
[395075614,1764402840855,-472.21200936,0.00053969,120]
[395075615,1764402840908,-138466.26998885,0.00053971,120]
[395075616,1764402840960,-5029.9875,0.0005398,120]
[395075617,1764402841014,-235.65028374,0.00053981,120]
[395075618,1764402841067,-73665.44540262,0.00053983,120]
[395075619,1764402841121,-397349.17333319,0.00053985,120]
[395075620,1764402841175,-189.29118212,0.00053985,120]
[395075621,1764402841228,-8654.1418743,0.00053986,120]
[395075622,1764402841282,-32316.46325415,0.00053986,120]
[395075623,1764402841337,-5972.5338106,0.0005399,120]
[395075624,1764402841393,-4327.07093715,0.00053993,120]
[395075625,1764402841448,-944.42401873,0.00053994,120]
[395075626,1764402841502,-243.300825,0.00053994,120]
[395075627,1764402841557,-3321.45492381,0.00053996,120]
[395075628,1764402841609,-204.3666213,0.00053997,120]
[395075629,1764402841662,-784.13763455,0.00053998,120]
[395075630,1764402841719,-3428.34435034,0.00053998,31]
[395075631,1764402841774,-16158.23162707,0.00053999,120]
[395075632,1764402841828,-284.87111554,0.00054,120]
[395075633,1764402841882,-105891.2071647,0.00054,30]
[395075634,1764402841937,-801.05479696,0.00054,120]
[395075635,1764402841996,-200.0,0.00054,120]
[395075636,1764402842052,-7289.7971704,0.00054,120]
[395075637,1764402842107,-130312.10770159,0.00054,31]
[395075638,1764402842162,-3472.0,0.00054,120]
[395075639,1764402842218,-4585.0,0.00054,120]
[395075640,1764402842271,-5728.9357626,0.00054,120]
[395075641,1764402842532,-1191.91958918,0.00054,30]
[395075642,1764402842587,-920.4294701,0.00054,30]
[395075643,1764402842642,-30000.0,0.00054,120]
[395075644,1764402842698,-30000.0,0.00054,120]
[395075645,1764402842755,-30000.0,0.00054,120]
[395075646,1764402842809,-13939.31,0.00054,120]
[395075647,1764402842863,-30000.0,0.00054,120]
[395075648,1764402842920,-443.7896753,0.00054,30]
[395075649,1764402842977,-8634.93138916,0.00054,120]
[395075650,1764402843034,-162.44591344,0.00054,120]
[395075651,1764402843092,-630.13188079,0.00054,120]
[395075652,1764402843149,-32500.36058532,0.00054,120]
[395075653,1764402843211,-18040.22753098,0.00054,120]
[395075654,1764402843272,-1681.98303033,0.00054,120]
[395075655,1764402843332,-176.0,0.000543,120]
[395075656,1764402843393,-152.0,0.000543,120]
[395075657,1764402843453,-1161.33653455,0.0005432,60]
[395075658,1764402843512,-2000.0,0.0005432,55]
[395075659,1764402843572,-1000.0,0.00054443,120]
[395075660,1764402844785,150.0,0.00054221,30]
[395075661,1764402845228,150.0,0.00054221,30]
[395075662,1764402845604,577.25,0.00038356,120]
[395075663,1764402845683,150.0,0.00054221,30]
[395075664,1764402845756,577.25,0.00038356,120]
[395075665,1764402845869,577.25,0.00038356,120]
[395075666,1764402846235,577.25,0.00038356,120]
[395075667,1764402846330,577.25,0.00038356,120]
[395075668,1764402846476,577.25,0.00038356,120]
[395075669,1764402846557,1534.13912921,0.00052093,120]
[395075670,1764402846619,863.27960407,0.00052093,120]
[395075671,1764402846685,577.25,0.00038356,120]
[395075672,1764402846851,577.25,0.00038356,120]
[395075673,1764402846966,577.25,0.00038356,120]
[395075674,1764402847045,46807.31,0.0005449,120]
[395075675,1764402847108,577.25,0.00038356,120]
[395075676,1764402847206,577.25,0.00038356,120]
[395075677,1764402847315,577.25,0.00038356,120]
[395075678,1764402847405,577.25,0.00038356,120]
[395075679,1764402847549,577.25,0.00038356,120]
[395075680,1764402847707,577.25,0.00038356,120]
[395075681,1764402847816,577.25,0.00038356,120]
[395075682,1764402847970,577.25,0.00038356,120]
[395075683,1764402848081,577.25,0.00038356,120]
[395075684,1764402848296,577.25,0.00038356,120]
[395075685,1764402848595,577.25,0.00038356,120]
[395075686,1764402848992,577.25,0.00038356,120]
[395075687,1764402849168,577.25,0.00038356,120]
[395075688,1764402849369,577.25,0.00038356,120]
[395075689,1764402849479,577.28444704,0.00038356,120]
[395075690,1764402849671,1499.0,0.00054521,30]
[395075692,1764403055016,580.63,0.00013699,2]
[395075694,1764403165492,-151.0,0.00014742,2]
[395075695,1764403165520,-156.587,0.00014742,2]
[395075696,1764403165546,-162.380719,0.00014742,2]
[395075697,1764403165576,-151.33087578,0.00014742,2]
[395075698,1764403165604,-196.71085429,0.00015022,2]
[395075699,1764403165631,-1012.0,0.00015121,2]
[395075700,1764403165660,-300.0,0.00015121,2]
[395075701,1764403165688,-1200.0,0.00015122,2]
[395075702,1764403165716,-300.0,0.00015122,2]
[395075703,1764403165743,-300.0,0.00015122,2]
[395075704,1764403165773,-300.0,0.00015122,2]
[395075705,1764403165806,-250.0,0.00015123,2]
[395075706,1764403168228,-6160.89985093,0.00015123,2]
[395075707,1764403168282,-10000.01,0.00015123,2]
[395075708,1764403168303,-10000.01,0.00015123,2]
[395075709,1764403168417,-6717.19364907,0.00015123,2]
[395075710,1764403168428,-1000.0,0.00015123,2]
[395075711,1764403168438,-2282.81635093,0.00015123,2]
[395075712,1764403168468,-10000.01,0.00015123,2]
[395075713,1764403168558,-10000.01,0.00015123,2]
[395075714,1764403168746,-10000.01,0.00015123,2]
[395075715,1764403168913,-10000.01,0.00015123,2]
[395075716,1764403169060,-10000.01,0.00015123,2]
[395075717,1764403169239,-10000.01,0.00015123,2]
[395075718,1764403172423,-10000.01,0.00015123,2]
[395075719,1764403172513,-2160.99024907,0.00015123,2]
[395075720,1764403172523,-7444.02154759,0.00015209,2]
[395075721,1764403172532,-394.99820334,0.00015209,2]
[395075722,1764403172586,-9118.87489323,0.00015209,2]
[395075723,1764403172595,-300.0,0.00015214,2]
[395075724,1764403172605,-500.0,0.00015221,2]
[395075725,1764403172614,-81.13510677,0.00015221,2]
[395075726,1764403172662,-418.86489323,0.00015221,2]
[395075727,1764403172671,-269.95393764,0.00015221,2]
[395075728,1764403172680,-500.0,0.00015222,2]
[395075729,1764403172689,-500.0,0.00015222,2]
[395075730,1764403172699,-500.0,0.00015222,2]
[395075731,1764403172708,-500.0,0.00015222,2]
[395075732,1764403172718,-500.0,0.00015222,2]
[395075733,1764403172727,-500.0,0.00015222,2]
[395075734,1764403172736,-500.0,0.00015222,2]
[395075735,1764403172746,-500.0,0.00015222,2]
[395075736,1764403172755,-500.0,0.00015222,2]
[395075737,1764403172764,-500.0,0.00015222,2]
[395075738,1764403172774,-500.0,0.00015222,2]
[395075739,1764403172784,-500.0,0.00015222,2]
[395075740,1764403172793,-2498.2296,0.00015297,2]
[395075741,1764403172803,-812.96156913,0.00015308,2]
[395075742,1764403172825,-150.65080085,0.00015308,2]
[395075743,1764403172834,-1000.0,0.00015309,2]
[395075744,1764403172843,-8849.35919915,0.00015322,2]
[395075745,1764403172900,-10000.01,0.00015322,2]
[395075746,1764403172981,-928.00256718,0.00015322,2]
[395075747,1764403172991,-600.0,0.00015322,2]
[395075748,1764403173000,-200.0,0.00015323,2]
[395075749,1764403173009,-200.0,0.00015323,2]
[395075750,1764403173019,-152.0,0.00015323,2]
[395075751,1764403173028,-152.0,0.00015323,2]
[395075752,1764403173037,-152.0,0.00015323,2]
[395075753,1764403173046,-152.0,0.00015323,2]
[395075754,1764403173055,-152.0,0.00015323,2]
[395075755,1764403173064,-152.0,0.00015323,2]
[395075756,1764403173073,-152.0,0.00015323,2]
[395075757,1764403173082,-152.0,0.00015323,2]
[395075758,1764403173091,-500.0,0.00015359,2]
[395075759,1764403173100,-500.0,0.00015359,2]
[395075760,1764403173110,-500.0,0.00015359,2]
[395075761,1764403173119,-500.0,0.00015359,2]
[395075762,1764403173128,-1425.0,0.00015366,2]
[395075763,1764403173138,-3431.00743282,0.00015397,2]
[395075764,1764403180985,-1592.95039383,0.00015023,2]
[395075765,1764403183086,-446.17493106,0.00015023,2]
[395075766,1764403186917,-500.0,0.00015023,2]
[395075767,1764403188697,-249.54801596,0.00015023,2]
[395075768,1764403192968,-198.98171055,0.00015023,2]
[395075769,1764403194592,-808.21882168,0.00015023,2]
[395075770,1764403198444,-156.69183458,0.00015023,2]
[395075771,1764403201184,-296.53582855,0.00015023,2]
[395075772,1764403205033,-255.01067821,0.00015022,2]
[395075773,1764403207310,-174.03173377,0.00015022,2]
[395075774,1764403209657,-350.0,0.00015022,2]
[395075775,1764403212123,-182.9108029,0.00015022,2]
[395075776,1764403214045,-191.78117832,0.00015022,2]
[395075777,1764403215562,-500.0,0.00015013,2]
[395075778,1764403220051,-500.35893617,0.00014946,2]
[395075779,1764403223225,-397.31624994,0.00014946,2]
[395075780,1764403225591,-339.7753563,0.00014946,2]
[395075784,1764403230373,-191.78117832,0.00014946,2]
[395075785,1764403232530,-430.51636054,0.00014946,2]
[395075786,1764403235904,-371.28199678,0.00014946,2]
[395075787,1764403237659,-500.0,0.00014946,2]
[395075788,1764403242685,-308.21882185,0.00014946,2]
[395075789,1764403245497,-325.96826623,0.00014946,2]
[395075790,1764403247869,-500.0,0.00014946,2]
[395075791,1764403249550,-435.83011934,0.00014946,2]
[395075792,1764403252775,-246.6691688,0.00014946,2]
[395075793,1764403256180,-437.60738451,0.00014946,2]
[395075794,1764403258408,-500.0,0.00014946,2]
[395075795,1764403260641,-179.50081846,0.00014946,2]
[395075796,1764403263216,-500.0,0.00014946,2]
[395075797,1764403264983,-163.73263199,0.00014923,2]
[395075798,1764403267353,-242.52206028,0.00014923,2]
[395075799,1764403269447,-210.0,0.00014923,2]
[395075800,1764403272147,-302.63318054,0.00014923,2]
[395075801,1764403273954,-274.56713682,0.00014923,2]
[395075802,1764403276957,-238.82738389,0.00014923,2]
[395075803,1764403279278,-184.82968071,0.00014923,2]
[395075804,1764403279299,-315.17031929,0.00014946,2]
[395075805,1764403282753,-46.2656068,0.00015022,2]
[395075806,1764403282775,-300.0,0.00015022,2]
[395075807,1764403282800,-153.7343932,0.00015022,2]
[395075808,1764403285639,-146.2656068,0.00015022,2]
[395075809,1764403285662,-300.0,0.00015022,2]
[395075810,1764403285686,-53.7343932,0.00015022,2]
[395075811,1764403289071,-159.2656068,0.00015022,2]
[395075812,1764403289093,-150.16804849,0.00015022,2]
[395075813,1764403289116,-189.01799909,0.00015022,2]
[395075814,1764403293534,-227.50857518,0.00015022,2]
[395075815,1764403293561,-160.22906631,0.00015022,2]
[395075816,1764403294340,-339.77093369,0.00015022,2]
[395075817,1764403294374,-500.0,0.00015022,2]
[395075818,1764403294408,-500.0,0.00015022,2]
[395075819,1764403294441,-500.0,0.00015022,2]
[395075820,1764403294476,-500.0,0.00015022,2]
[395075821,1764403294510,-437.1259337,0.00015022,2]
[395075822,1764403294544,-500.0,0.00015022,2]
[395075823,1764403294579,-500.0,0.00015022,2]
[395075824,1764403294614,-500.0,0.00015022,2]
[395075825,1764403294649,-500.0,0.00015022,2]
[395075826,1764403294734,-500.0,0.00015022,2]
[395075827,1764403294763,-166.89609324,0.00015022,2]
[395075828,1764403294794,-368.46626542,0.00015022,2]
[395075829,1764403294827,-500.0,0.00015022,2]
[395075830,1764403295161,-383.5347823,0.00015023,2]
[395075831,1764403295190,-215.81990102,0.00015023,2]
[395075832,1764403296172,-284.18009898,0.00015023,2]
[395075833,1764403296193,-215.81990102,0.00015023,2]
[395075834,1764403296246,-5730.57591604,0.00015023,2]
[395075835,1764403296313,-200.0,0.00015023,2]
[395075836,1764403296336,-10000.01,0.00015023,2]
[395075837,1764403296382,-10000.01,0.00015023,2]
[395075838,1764403296498,-10000.01,0.00015023,2]
[395075839,1764403296573,-10000.01,0.00015023,2]
[395075840,1764403296631,-10000.01,0.00015023,2]
[395075841,1764403296680,-10000.01,0.00015023,2]
[395075842,1764403296709,-10000.01,0.00015023,2]
[395075843,1764403296750,824.08,0.00014682,2]
[395075844,1764403296777,-9175.93,0.00015023,2]
[395075845,1764403296801,-10000.01,0.00015023,2]
[395075846,1764403296899,-10000.01,0.00015023,2]
[395075847,1764403296919,-10000.01,0.00015023,2]
[395075848,1764403296940,-10000.01,0.00015023,2]
[395075849,1764403299893,-255.92714014,0.00015023,2]
[395075850,1764403300155,-31.72394659,0.00015023,2]
[395075851,1764403300187,-161.86492576,0.00015023,2]
[395075852,1764403300264,-9612.8322553,0.00015023,2]
[395075853,1764403301766,-500.0,0.00014946,2]
[395075854,1764403304545,-331.64569443,0.00014946,2]
[395075855,1764403314161,-502.12675571,0.00014946,2]
[395075856,1764403317431,-163.732632,0.00014946,2]
[395075857,1764403320619,-500.0,0.00014946,2]
[395075858,1764403322319,-500.0,0.00014946,2]
[395075859,1764403334136,-198.45165438,0.00014946,2]
[395075860,1764403336963,-293.86748448,0.00014946,2]
[395075861,1764403336984,-112.57590712,0.00015022,2]
[395075862,1764403341225,-187.42409288,0.00015022,2]
[395075863,1764403341251,-138.54417352,0.00015022,2]
[395075864,1764403343830,-500.0,0.00015021,2]
[395075865,1764403345519,-300.0,0.00015021,2]
[395075866,1764403347337,-555.01067821,0.00015021,2]
[395075867,1764403349645,-231.38632683,0.00014923,2]
[395075868,1764403352434,-161.98,0.00014923,2]
[395075869,1764403354169,-160.63903389,0.00014923,2]
[395075870,1764403358377,-525.77771,0.00014923,2]
[395075871,1764403359854,-168.7131197,0.00014923,2]
[395075872,1764403362733,-215.60299496,0.00014923,2]
[395075873,1764403366358,-500.0,0.00014923,2]
[395075874,1764403369175,-651.0,0.00014923,2]
[395075875,1764403373220,-272.43286335,0.00014923,2]
[395075876,1764403374692,-173.31590327,0.00014923,2]
[395075877,1764403380577,-284.2868803,0.00014923,2]
[395075878,1764403381772,-302.0,0.00014923,2]
[395075879,1764403384397,-315.37149453,0.00014923,2]
[395075880,1764403386608,-400.34440381,0.00014923,2]
[395075881,1764403397516,-195.0,0.00014923,2]
[395075882,1764403398554,4019.62,0.00014532,2]
[395075883,1764403399096,-195.0,0.00014923,2]
[395075884,1764403402160,-156.10674992,0.00014923,2]
[395075885,1764403404913,-302.0,0.00014923,2]
[395075886,1764403409528,-276.20924308,0.00014923,2]
[395075887,1764403412682,-451.0,0.00014923,2]
[395075888,1764403417022,-650.0,0.00014923,2]
[395075889,1764403420775,-451.03236189,0.00014923,2]
[395075890,1764403420798,-48.96763811,0.00014923,2]
[395075891,1764403422814,-105.57208177,0.00014923,2]
[395075892,1764403422841,-154.53971988,0.00014923,2]
[395075893,1764403422865,-52.16327112,0.00015014,2]
[395075894,1764403424623,-799.99999983,0.00015014,2]
[395075895,1764403426002,-638.4094518,0.00015014,2]
[395075896,1764403429962,-500.0,0.00015014,2]
[395075897,1764403432450,-500.00000017,0.00015014,2]
[395075898,1764403434114,-591.5700817,0.00015014,2]
[395075899,1764403437760,-210.28007629,0.0001492,2]
[395075900,1764403437785,-289.71992371,0.00015014,2]
[395075901,1764403440474,-201.43310583,0.00015014,2]
[395075902,1764403442134,-892.6122879,0.00015014,2]
[395075903,1764403445573,-210.28007628,0.00014923,2]
[395075904,1764403445596,-289.71992372,0.00015014,2]
[395075905,1764403447357,-500.0,0.00015014,2]
[395075906,1764403456829,-334.44429683,0.00015014,2]
[395075907,1764403460470,-195.0,0.00015014,2]
[395075908,1764403462480,-281.13378765,0.00015014,2]
[395075909,1764403464530,-408.8477,0.00015014,2]
[395075910,1764403466491,-166.82,0.00015014,2]
[395075911,1764403477571,-500.0,0.00015014,2]
[395075912,1764403479486,-500.0,0.00015014,2]
[395075913,1764403483605,-200.0,0.00015014,2]
[395075914,1764403486954,-474.22229,0.00015014,2]
[395075915,1764403489584,-500.0,0.00015014,2]
[395075916,1764403492204,-191.89281075,0.00015014,2]
[395075917,1764403494300,-376.61515352,0.00015014,2]
[395075918,1764403498815,-35.04893098,0.00015014,2]
[395075919,1764403498837,-273.05825827,0.0001502,2]
[395075920,1764403500500,-191.89281075,0.0001502,2]
[395075921,1764403502892,-500.0,0.0001502,2]
[395075922,1764403504349,-235.04893098,0.0001502,2]
[395075923,1764403504375,-99.45481497,0.0001502,2]
[395075924,1764403507622,-200.54518503,0.0001502,2]
[395075925,1764403507647,-80.19721497,0.0001502,2]
[395075926,1764403510740,-219.80278503,0.0001502,2]
[395075927,1764403510763,-8.67900422,0.0001502,2]
[395075928,1764403515945,-500.0,0.0001502,2]
[395075929,1764403518171,-250.0,0.0001502,2]
[395075930,1764403522797,-441.32099578,0.0001502,2]
[395075931,1764403522821,-58.67900422,0.00015021,2]
[395075932,1764403524548,-500.0,0.00015021,2]
[395075933,1764403527541,-258.72603595,0.00015021,2]
[395075934,1764403531940,-215.49625405,0.00015021,2]
[395075935,1764403533329,-239.48095801,0.00015021,2]
[395075936,1764403535859,-508.06142505,0.00015021,2]
[395075937,1764403538364,-256.41102697,0.00015021,2]
[395075938,1764403541404,-252.45761694,0.00015021,2]
[395075939,1764403543280,-304.66649624,0.00015021,2]
[395075940,1764403545064,-470.89193652,0.00015021,2]
[395075941,1764403549461,-336.81354587,0.00014923,2]
[395075942,1764403552247,-500.0,0.00014923,2]
[395075943,1764403554304,-272.15102962,0.00014923,2]
[395075946,1764403561022,999.0,0.00014414,3]
[395075947,1764403564530,-326.57291601,0.00014923,2]
[395075948,1764403564553,-144.8650274,0.00014923,2]
[395075949,1764403566103,-192.59055502,0.00014923,2]
[395075950,1764403568807,-195.0,0.00014923,2]
[395075951,1764403568832,-162.54441758,0.00014923,2]
[395075952,1764403568858,-113.89352583,0.0001502,2]
[395075953,1764403571442,-186.10647417,0.0001502,2]
[395075954,1764403571469,-313.89352583,0.00015021,2]
[395075955,1764403573778,-500.0,0.00015021,2]
[395075956,1764403577312,-500.0,0.00015021,2]
[395075957,1764403580557,-500.0,0.00015021,2]
[395075958,1764403583854,-471.43794341,0.00015021,2]
[395075959,1764403587648,-500.0,0.00015021,2]
[395075960,1764403590314,-256.41102697,0.00015021,2]
[395075961,1764403592487,-500.0,0.00014923,2]
[395075962,1764403596440,-300.0,0.00014923,2]
[395075963,1764403597481,-120.3746,0.00014923,2]
[395075964,1764403597503,-123.21437303,0.00015021,2]
[395075965,1764403602015,-500.0,0.00015021,2]
[395075966,1764403612757,-200.0,0.00015021,2]
[395075967,1764403615508,-500.0,0.00015021,2]
[395075968,1764403617992,-243.58897303,0.00015021,2]
[395075969,1764403621129,-471.43794341,0.00015021,2]
[395075974,1764403627678,-256.41102697,0.00015014,2]
[395075975,1764403629476,-228.26601918,0.00015014,2]
[395075976,1764403631366,-135.32295385,0.00015014,2]
[395075977,1764403631389,-151.0,0.00015014,2]
[395075978,1764403631415,-213.67704615,0.00015014,2]
[395075979,1764403634322,-286.32295385,0.00015014,2]
[395075980,1764403634347,-185.11498956,0.00015014,2]
[395075986,1764403637629,-368.52874851,0.00015014,2]
[395075987,1764403637653,-131.47125149,0.00015014,2]
[395075988,1764403640350,-19.52874851,0.00015014,2]
[395075989,1764403640372,-151.0,0.00015014,2]
[395075990,1764403640395,-85.88227846,0.00015014,2]
[395075991,1764403641817,-414.11772154,0.00015014,2]
[395075992,1764403641839,-85.88227846,0.00015014,2]
[395075993,1764403644425,-65.11772154,0.00015014,2]
[395075994,1764403644448,-277.18665012,0.00015014,2]
[395075995,1764403646915,-165.87159152,0.00015014,2]
[395076003,1764403648584,-56.94175836,0.00015014,2]
[395076004,1764403648608,-151.0,0.00015014,2]
[395076005,1764403648630,-48.46926861,0.00015014,2]
[395076007,1764403652380,-165.86132075,0.00015014,2]
[395076008,1764403654998,-285.66941064,0.00015014,2]
[395076009,1764403655021,-48.46926861,0.00015014,2]
[395076010,1764403657712,-102.53073139,0.00015014,2]
[395076011,1764403657737,-240.41878812,0.00015014,2]
[395076012,1764403659236,-259.58121188,0.00015014,2]
[395076013,1764403659279,-94.43604825,0.00015014,2]
[395076014,1764403667666,-56.56395175,0.00015014,2]
[395076015,1764403667690,-361.27378033,0.00015014,2]
[395076016,1764403670092,-138.72621967,0.00015014,2]
[395076017,1764403670116,-151.0,0.00015014,2]
[395076018,1764403670141,-210.27378033,0.00015014,2]
[395076019,1764403672187,-500.0,0.00015013,2]
[395076020,1764403675150,-500.0,0.00015013,2]
[395076021,1764403677804,-160.71347798,0.00015013,2]
[395076022,1764403679516,-39.28652202,0.00015013,2]
[395076023,1764403679541,-289.72621967,0.00015014,2]
[395076024,1764403679566,-100.18876842,0.00015014,2]
[395076025,1764403682250,-149.81123158,0.00015014,2]
[395076026,1764403682275,-17.08486166,0.00015014,2]
[395076027,1764403685122,-133.91513834,0.00015014,2]
[395076028,1764403685144,-267.9696451,0.00015014,2]
[395076029,1764403685170,-98.11521656,0.00015014,2]
[395076030,1764403687259,-401.88478344,0.00015014,2]
[395076031,1764403687281,-12.22187187,0.00015014,2]
[395076032,1764403689354,-138.77812813,0.00015014,2]
[395076033,1764403689378,-361.22187187,0.00015014,2]
[395076034,1764403691606,-138.77812813,0.00015014,2]
[395076035,1764403691628,-151.0,0.00015014,2]
[395076036,1764403691651,-263.01205792,0.00015014,2]
[395076037,1764403693811,-200.0,0.00015014,2]
[395076038,1764403696534,-36.98794208,0.00015014,2]
[395076039,1764403696556,-151.0,0.00015014,2]
[395076040,1764403696579,-58.47546801,0.00015014,2]
[395076041,1764403698312,-441.52453199,0.00015014,2]
[395076042,1764403698334,-58.47546801,0.00015014,2]
[395076043,1764403700884,-92.52453199,0.00015014,2]
[395076044,1764403700906,-151.0,0.00015014,2]
[395076045,1764403700929,-56.47546801,0.00015014,2]
[395076046,1764403703747,-443.52453199,0.00015014,2]
[395076047,1764403703768,-56.47546801,0.00015014,2]